fUST/lending_fUST_20250805
["ID","MTS","AMOUNT","RATE_DAILY","PERIOD"]
[377320739,1754340658402,-19939.19,0.00035068,120]
[377320740,1754340658412,-1601.57,0.00035068,2]
[377320741,1754340658422,-193.56,0.00035068,2]
[377320742,1754340658432,-460.0,0.00035068,2]
[377320743,1754340658442,-460.0,0.00035068,2]
[377320744,1754340658452,-2947.65,0.00035068,2]
[377320745,1754340658462,-1964.74,0.00035068,2]
[377320746,1754340658472,-615.23,0.00035068,2]
[377320747,1754340658482,-460.0,0.00035068,2]
[377320748,1754340658492,-460.0,0.00035068,2]
[377320749,1754340658502,-460.0,0.00035068,2]
[377320750,1754340658512,-494.28,0.00035068,2]
[377320751,1754340658522,-481.54,0.00035068,2]
[377320752,1754340658532,-460.0,0.00035068,2]
[377320753,1754340658544,-430.6428066,0.00035068,30]
[377320754,1754340658556,-160.2486403,0.00035068,30]
[377320755,1754340658567,-319.402668,0.00035068,30]
[377320756,1754340658578,-578.8327873,0.00035068,30]
[377320757,1754340658590,-578.8327873,0.00035068,30]
[377320758,1754340658600,-589.3468606,0.00035068,30]
[377320759,1754340658611,-578.7022727,0.00035068,30]
[377320760,1754340658624,-206.0,0.0003507,30]
[377320761,1754340658636,-200.0,0.0003509,120]
[377320762,1754340658645,-560.0,0.00035092,2]
[377320763,1754340658655,-231.67098287,0.000351,30]
[377320764,1754340658665,-150.0,0.00035115,2]
[377320765,1754340658675,-150.0,0.00035115,2]
[377320766,1754340658684,-855.3500093,0.00035123,30]
[377320767,1754340658694,-1417.11,0.000352,7]
[377320768,1754340658704,-151.0,0.0003526,14]
[377320769,1754340658714,-578.8327873,0.0003526,30]
[377320770,1754340658724,-577.4124223,0.0003526,30]
[377320771,1754340658734,-165.7352055,0.0003526,30]
[377320772,1754340658744,-178.5956294,0.0003526,30]
[377320773,1754340658753,-162.7465644,0.00035288,30]
[377320774,1754340658763,-430.6428066,0.00035292,30]
[377320775,1754340658773,-3569.6,0.000353,7]
[377320776,1754340658783,-151.0,0.000353,14]
[377320777,1754340658793,-151.0,0.000353,14]
[377320778,1754340658803,-151.0,0.000353,14]
[377320779,1754340658812,-151.0,0.000353,14]
[377320780,1754340658822,-195.3,0.000353,15]
[377320781,1754340658832,-151.0,0.00035301,14]
[377320782,1754340658842,-151.0,0.00035301,14]
[377320783,1754340658851,-151.0,0.00035301,14]
[377320784,1754340658864,-344.798651,0.00035301,14]
[377320785,1754340658874,-344.798651,0.00035301,14]
[377320786,1754340658884,-200.0,0.00035311,120]
[377320787,1754340658893,-1600.0,0.00035342,7]
[377320788,1754340658904,-460.0,0.00035342,2]
[377320789,1754340658914,-460.0,0.00035342,2]
[377320790,1754340658924,-156.028337,0.00035342,14]
[377320791,1754340658934,-882.44,0.00035342,2]
[377320792,1754340658944,-460.0,0.00035342,2]
[377320793,1754340658954,-179.67,0.00035342,2]
[377320794,1754340658964,-460.0,0.00035342,2]
[377320795,1754340658974,-151.0,0.00035342,14]
[377320796,1754340658984,-1299.76,0.00035342,2]
[377320797,1754340658994,-2365.37,0.00035342,2]
[377320798,1754340659004,-460.0,0.00035342,2]
[377320799,1754340659013,-460.0,0.00035342,2]
[377320800,1754340659023,-460.0,0.00035342,2]
[377320801,1754340659033,-620.86,0.00035342,2]
[377320802,1754340659043,-460.0,0.00035342,2]
[377320803,1754340659054,-151.0,0.00035342,14]
[377320804,1754340659063,-460.0,0.00035342,2]
[377320805,1754340659073,-701.71,0.00035342,2]
[377320806,1754340659083,-483.5,0.00035342,2]
[377320807,1754340659093,-151.0,0.00035342,14]
[377320808,1754340659102,-151.0,0.00035342,14]
[377320809,1754340659112,-460.0,0.00035342,2]
[377320810,1754340659122,-460.0,0.00035342,2]
[377320811,1754340659132,-151.0,0.00035342,14]
[377320812,1754340659142,-151.0,0.00035342,14]
[377320813,1754340659152,-181.06342,0.00035342,14]
[377320814,1754340659162,-460.0,0.00035342,2]
[377320815,1754340659171,-460.0,0.00035342,2]
[377320816,1754340659181,-291.38,0.00035342,2]
[377320817,1754340659190,-151.0,0.00035342,14]
[377320818,1754340659201,-1558.41,0.00035342,2]
[377320819,1754340659215,-168.71,0.00035342,2]
[377320820,1754340659224,-376.4,0.00035342,2]
[377320821,1754340659235,-460.0,0.00035342,2]
[377320822,1754340659250,-460.0,0.00035342,2]
[377320823,1754340659260,-460.0,0.00035342,2]
[377320824,1754340659270,-460.0,0.00035342,2]
[377320825,1754340659280,-460.0,0.00035342,2]
[377320826,1754340659290,-460.0,0.00035342,2]
[377320827,1754340659300,-460.0,0.00035342,2]
[377320828,1754340659309,-460.0,0.00035342,2]
[377320829,1754340659322,-460.0,0.00035342,2]
[377320830,1754340659333,-1259.66,0.00035342,2]
[377320831,1754340659343,-306.43,0.00035342,2]
[377320832,1754340659352,-460.0,0.00035342,2]
[377320833,1754340659362,-182.49,0.00035342,2]
[377320834,1754340659372,-5166.09,0.00035342,2]
[377320835,1754340659382,-460.0,0.00035342,2]
[377320836,1754340659391,-460.0,0.00035342,2]
[377320837,1754340659401,-4368.52,0.00035342,2]
[377320838,1754340659411,-2550.51,0.00035342,2]
[377320839,1754340659422,-460.0,0.00035342,2]
[377320840,1754340659433,-1004.67,0.00035342,2]
[377320841,1754340659444,-460.0,0.00035342,2]
[377320842,1754340659454,-460.0,0.00035342,2]
[377320843,1754340659464,-460.0,0.00035342,2]
[377320844,1754340659474,-473.48,0.00035342,2]
[377320845,1754340659484,-460.0,0.00035342,2]
[377320846,1754340659494,-460.0,0.00035342,2]
[377320847,1754340659504,-460.0,0.00035342,2]
[377320848,1754340659514,-945.19,0.00035342,2]
[377320849,1754340659523,-460.0,0.00035342,2]
[377320850,1754340659533,-525.33,0.00035342,2]
[377320851,1754340659547,-460.0,0.00035342,2]
[377320852,1754340659557,-460.0,0.00035342,2]
[377320853,1754340659567,-460.0,0.00035342,2]
[377320854,1754340659576,-460.0,0.00035342,2]
[377320855,1754340659587,-460.0,0.00035342,2]
[377320856,1754340659596,-1070.06,0.00035342,2]
[377320857,1754340659606,-817.17,0.00035342,2]
[377320858,1754340659615,-460.0,0.00035342,2]
[377320859,1754340659627,-419.24,0.00035342,2]
[377320860,1754340659636,-6244.75,0.00035342,2]
[377320861,1754340659646,-1910.52,0.00035342,2]
[377320862,1754340659656,-710.67,0.00035342,2]
[377320863,1754340659666,-1601.57,0.00035342,2]
[377320864,1754340659675,-460.0,0.00035342,2]
[377320865,1754340659685,-2947.65,0.00035342,2]
[377320866,1754340659695,-1964.74,0.00035342,2]
[377320867,1754340659705,-460.0,0.00035342,2]
[377320868,1754340659716,-615.23,0.00035342,2]
[377320869,1754340659842,-496.91,0.00035342,2]
[377320870,1754340659852,-460.0,0.00035342,2]
[377320871,1754340659862,-494.28,0.00035342,2]
[377320872,1754340659871,-1500.0,0.00035364,5]
[377320873,1754340659883,-200.0,0.00035458,120]
[377320874,1754340659893,-162.7465644,0.00035562,30]
[377320875,1754340659902,-3600.0,0.00035612,5]
[377320876,1754340659915,-3000.0,0.00035612,5]
[377320877,1754340659924,-3000.0,0.00035612,5]
[377320878,1754340659934,-151.0,0.00035616,14]
[377320879,1754340659943,-151.0,0.00035616,14]
[377320880,1754340659954,-460.0,0.00035616,2]
[377320881,1754340659963,-460.0,0.00035616,2]
[377320882,1754340659974,-882.44,0.00035616,2]
[377320883,1754340659984,-460.0,0.00035616,2]
[377320884,1754340659995,-460.0,0.00035616,2]
[377320885,1754340660005,-1299.76,0.00035616,2]
[377320886,1754340660016,-178.56,0.00035616,2]
[377320887,1754340660026,-2365.37,0.00035616,2]
[377320888,1754340660036,-502.04,0.00035616,2]
[377320889,1754340660046,-199.43,0.00035616,2]
[377320890,1754340660056,-620.86,0.00035616,2]
[377320891,1754340660067,-460.0,0.00035616,2]
[377320892,1754340660076,-460.0,0.00035616,2]
[377320893,1754340660086,-701.71,0.00035616,2]
[377320894,1754340660097,-483.5,0.00035616,2]
[377320895,1754340660107,-460.0,0.00035616,2]
[377320896,1754340660117,-460.0,0.00035616,2]
[377320897,1754340660127,-460.0,0.00035616,2]
[377320898,1754340660139,-460.0,0.00035616,2]
[377320899,1754340660148,-1558.41,0.00035616,2]
[377320900,1754340660160,-153.14,0.00035616,2]
[377320901,1754340660170,-460.0,0.00035616,2]
[377320902,1754340660179,-460.0,0.00035616,2]
[377320903,1754340660189,-460.0,0.00035616,2]
[377320904,1754340660199,-460.0,0.00035616,2]
[377320905,1754340660208,-460.0,0.00035616,2]
[377320906,1754340660218,-460.0,0.00035616,2]
[377320907,1754340660228,-460.0,0.00035616,2]
[377320908,1754340660238,-460.0,0.00035616,2]
[377320909,1754340660248,-1259.66,0.00035616,2]
[377320910,1754340660258,-460.0,0.00035616,2]
[377320911,1754340660268,-5166.09,0.00035616,2]
[377320912,1754340660278,-460.0,0.00035616,2]
[377320913,1754340660288,-460.0,0.00035616,2]
[377320914,1754340660301,-4368.52,0.00035616,2]
[377320915,1754340660311,-2550.51,0.00035616,2]
[377320916,1754340660322,-460.0,0.00035616,2]
[377320917,1754340660332,-1004.67,0.00035616,2]
[377320918,1754340660343,-460.0,0.00035616,2]
[377320919,1754340660352,-460.0,0.00035616,2]
[377320920,1754340660362,-460.0,0.00035616,2]
[377320921,1754340660372,-473.48,0.00035616,2]
[377320922,1754340660381,-460.0,0.00035616,2]
[377320923,1754340660391,-460.0,0.00035616,2]
[377320924,1754340660400,-460.0,0.00035616,2]
[377320925,1754340660411,-945.19,0.00035616,2]
[377320926,1754340660420,-460.0,0.00035616,2]
[377320927,1754340660433,-460.0,0.00035616,2]
[377320928,1754340660442,-404.33,0.00035616,2]
[377320929,1754340660452,-460.0,0.00035616,2]
[377320930,1754340660461,-460.0,0.00035616,2]
[377320931,1754340660470,-596.34,0.00035616,2]
[377320932,1754340660479,-1070.06,0.00035616,2]
[377320933,1754340660488,-817.17,0.00035616,2]
[377320934,1754340660498,-460.0,0.00035616,2]
[377320935,1754340660508,-6244.75,0.00035616,2]
[377320936,1754340660517,-710.67,0.00035616,2]
[377320937,1754340660526,-1910.52,0.00035616,2]
[377320938,1754340660535,-1601.57,0.00035616,2]
[377320939,1754340660549,-189.72,0.00035616,2]
[377320940,1754340660558,-2947.65,0.00035616,2]
[377320941,1754340660567,-1964.74,0.00035616,2]
[377320942,1754340660577,-460.0,0.00035616,2]
[377320943,1754340660587,-615.23,0.00035616,2]
[377320944,1754340660597,-460.0,0.00035616,2]
[377320945,1754340660606,-494.28,0.00035616,2]
[377320946,1754340660616,-660.0,0.0003564,2]
[377320947,1754340660626,-2176.00570572,0.00035649,2]
[377320948,1754340660636,-162.7465644,0.00035808,30]
[377320949,1754340660646,-206.0,0.0003589,30]
[377320950,1754340660655,-460.0,0.0003589,2]
[377320951,1754340660664,-205.54000003,0.0003589,2]
[377320952,1754340660674,-882.44,0.0003589,2]
[377320953,1754340660684,-460.0,0.0003589,2]
[377320954,1754340660694,-174.83,0.0003589,2]
[377320955,1754340660703,-1299.76,0.0003589,2]
[377320956,1754340660712,-2365.37,0.0003589,2]
[377320957,1754340660722,-620.86,0.0003589,2]
[377320958,1754340660731,-460.0,0.0003589,2]
[377320959,1754340660740,-460.0,0.0003589,2]
[377320960,1754340660749,-701.71,0.0003589,2]
[377320961,1754340660759,-483.5,0.0003589,2]
[377320962,1754340660768,-460.0,0.0003589,2]
[377320963,1754340660778,-532.10155677,0.0003589,2]
[377320964,1754340660787,-460.0,0.0003589,2]
[377320965,1754340660796,-460.0,0.0003589,2]
[377320966,1754340660806,-1558.41,0.0003589,2]
[377320967,1754340660816,-460.0,0.0003589,2]
[377320968,1754340660826,-460.0,0.0003589,2]
[377320969,1754340660836,-460.0,0.0003589,2]
[377320970,1754340660846,-460.0,0.0003589,2]
[377320971,1754340660856,-460.0,0.0003589,2]
[377320972,1754340660866,-460.0,0.0003589,2]
[377320973,1754340660876,-460.0,0.0003589,2]
[377320974,1754340660886,-200.95,0.0003589,2]
[377320975,1754340660896,-1259.66,0.0003589,2]
[377320976,1754340660906,-251.65737684,0.0003589,2]
[377320977,1754340660916,-5166.09,0.0003589,2]
[377320978,1754340660926,-460.0,0.0003589,2]
[377320979,1754340660936,-460.0,0.0003589,2]
[377320980,1754340660946,-4368.52,0.0003589,2]
[377320981,1754340660955,-2550.51,0.0003589,2]
[377320982,1754340660964,-460.0,0.0003589,2]
[377320983,1754340660973,-1004.67,0.0003589,2]
[377320984,1754340660983,-460.0,0.0003589,2]
[377320985,1754340660992,-460.0,0.0003589,2]
[377320986,1754340661002,-460.0,0.0003589,2]
[377320987,1754340661012,-473.48,0.0003589,2]
[377320988,1754340661022,-460.0,0.0003589,2]
[377320989,1754340661032,-460.0,0.0003589,2]
[377320990,1754340661042,-460.0,0.0003589,2]
[377320991,1754340661052,-945.19,0.0003589,2]
[377320992,1754340661062,-460.0,0.0003589,2]
[377320993,1754340661071,-460.0,0.0003589,2]
[377320994,1754340661081,-460.0,0.0003589,2]
[377320995,1754340661091,-460.0,0.0003589,2]
[377320996,1754340661101,-817.17,0.0003589,2]
[377320997,1754340661111,-1070.06,0.0003589,2]
[377320998,1754340661121,-460.0,0.0003589,2]
[377320999,1754340661131,-6244.75,0.0003589,2]
[377321000,1754340661141,-710.67,0.0003589,2]
[377321001,1754340661151,-1910.52,0.0003589,2]
[377321002,1754340661167,-1601.57,0.0003589,2]
[377321003,1754340661176,-2947.65,0.0003589,2]
[377321004,1754340661186,-1964.74,0.0003589,2]
[377321005,1754340661195,-460.0,0.0003589,2]
[377321006,1754340661205,-615.23,0.0003589,2]
[377321007,1754340661215,-452.4,0.0003589,2]
[377321008,1754340661224,-494.28,0.0003589,2]
[377321009,1754340661234,-153.0,0.0003589,30]
[377321010,1754340661243,-153.0,0.0003589,30]
[377321011,1754340661253,-306.0,0.0003589,30]
[377321012,1754340661262,-153.0,0.0003589,30]
[377321013,1754340661272,-195.3,0.00035972,15]
[377321014,1754340661281,-200.0,0.00035997,120]
[377321015,1754340661291,-200.82317953,0.00036,2]
[377321016,1754340661300,-231.67098287,0.00036,30]
[377321017,1754340661311,-162.7465644,0.00036082,30]
[377321018,1754340661320,-444.7089371,0.00036082,30]
[377321019,1754340661330,-823.0,0.00036092,2]
[377321020,1754340661339,-500.0,0.000361,5]
[377321021,1754340661350,-500.0,0.000361,5]
[377321022,1754340661359,-4200.0,0.0003616,5]
[377321023,1754340661370,-3500.0,0.0003616,5]
[377321024,1754340661380,-3500.0,0.0003616,5]
[377321025,1754340661390,-1600.0,0.00036164,7]
[377321026,1754340661401,-437.15482372,0.00036164,2]
[377321027,1754340661414,-882.44,0.00036164,2]
[377321028,1754340661423,-460.0,0.00036164,2]
[377321029,1754340661433,-1299.76,0.00036164,2]
[377321030,1754340661442,-2365.37,0.00036164,2]
[377321031,1754340661452,-620.86,0.00036164,2]
[377321032,1754340661462,-460.0,0.00036164,2]
[377321033,1754340661471,-460.0,0.00036164,2]
[377321034,1754340661481,-701.71,0.00036164,2]
[377321035,1754340661491,-483.5,0.00036164,2]
[377321036,1754340661500,-460.0,0.00036164,2]
[377321037,1754340661510,-460.0,0.00036164,2]
[377321038,1754340661519,-460.0,0.00036164,2]
[377321039,1754340661528,-1558.41,0.00036164,2]
[377321040,1754340661538,-271.91,0.00036164,2]
[377321041,1754340661550,-320.09,0.00036164,2]
[377321042,1754340661560,-460.0,0.00036164,2]
[377321043,1754340661569,-460.0,0.00036164,2]
[377321044,1754340661579,-460.0,0.00036164,2]
[377321045,1754340661589,-460.0,0.00036164,2]
[377321046,1754340661599,-460.0,0.00036164,2]
[377321047,1754340661608,-1259.66,0.00036164,2]
[377321048,1754340661618,-5166.09,0.00036164,2]
[377321049,1754340661628,-460.0,0.00036164,2]
[377321050,1754340661637,-460.0,0.00036164,2]
[377321051,1754340661647,-4368.52,0.00036164,2]
[377321052,1754340661729,-2550.51,0.00036164,2]
[377321053,1754340661747,-460.0,0.00036164,2]
[377321054,1754340661757,-1004.67,0.00036164,2]
[377321055,1754340661766,-460.0,0.00036164,2]
[377321056,1754340661776,-460.0,0.00036164,2]
[377321057,1754340661787,-460.0,0.00036164,2]
[377321058,1754340661796,-473.48,0.00036164,2]
[377321059,1754340661806,-460.0,0.00036164,2]
[377321060,1754340661815,-460.0,0.00036164,2]
[377321061,1754340661826,-945.19,0.00036164,2]
[377321062,1754340661836,-460.0,0.00036164,2]
[377321063,1754340661846,-460.0,0.00036164,2]
[377321064,1754340661855,-460.0,0.00036164,2]
[377321065,1754340661865,-460.0,0.00036164,2]
[377321066,1754340661874,-1070.06,0.00036164,2]
[377321067,1754340661884,-817.17,0.00036164,2]
[377321068,1754340661894,-521.82,0.00036164,2]
[377321069,1754340661904,-710.67,0.00036164,2]
[377321070,1754340661916,-6244.75,0.00036164,2]
[377321071,1754340661925,-1910.52,0.00036164,2]
[377321072,1754340661935,-19939.19,0.00036164,120]
[377321073,1754340661944,-1601.57,0.00036164,2]
[377321074,1754340661954,-2947.65,0.00036164,2]
[377321075,1754340661963,-1964.74,0.00036164,2]
[377321076,1754340661972,-460.0,0.00036164,2]
[377321077,1754340661982,-615.23,0.00036164,2]
[377321078,1754340661991,-494.28,0.00036164,2]
[377321079,1754340662001,-760.0,0.00036188,2]
[377321080,1754340662011,-239.19595,0.000362,120]
[377321081,1754340662021,-259.92129,0.000362,120]
[377321082,1754340662030,-202.53212453,0.0003621,2]
[377321083,1754340662040,-263.43679341,0.0003624,2]
[377321084,1754340662049,-9075.15,0.000363,14]
[377321085,1754340662059,-2200.0,0.00036311,7]
[377321086,1754340662068,-35380.46,0.000364,14]
[377321087,1754340662078,-2416.033264,0.000364,22]
[377321088,1754340662087,-882.44,0.00036438,2]
[377321089,1754340662097,-456.11,0.00036438,2]
[377321090,1754340662107,-1299.76,0.00036438,2]
[377321091,1754340662116,-2365.37,0.00036438,2]
[377321092,1754340662126,-620.86,0.00036438,2]
[377321093,1754340662135,-599.54,0.00036438,2]
[377321094,1754340662145,-294.8,0.00036438,2]
[377321095,1754340662155,-701.71,0.00036438,2]
[377321096,1754340662166,-483.5,0.00036438,2]
[377321097,1754340662176,-460.0,0.00036438,2]
[377321098,1754340662186,-460.0,0.00036438,2]
[377321099,1754340662195,-460.0,0.00036438,2]
[377321100,1754340662205,-1558.41,0.00036438,2]
[377321101,1754340662214,-460.0,0.00036438,2]
[377321102,1754340662224,-460.0,0.00036438,2]
[377321103,1754340662233,-460.0,0.00036438,2]
[377321104,1754340662243,-460.0,0.00036438,2]
[377321105,1754340662253,-460.0,0.00036438,2]
[377321106,1754340662263,-1259.66,0.00036438,2]
[377321107,1754340662273,-5166.09,0.00036438,2]
[377321108,1754340662282,-460.0,0.00036438,2]
[377321109,1754340662291,-474.27,0.00036438,2]
[377321110,1754340662300,-4368.52,0.00036438,2]
[377321111,1754340662310,-2550.51,0.00036438,2]
[377321112,1754340662319,-460.0,0.00036438,2]
[377321113,1754340662329,-1004.67,0.00036438,2]
[377321114,1754340662338,-460.0,0.00036438,2]
[377321115,1754340662348,-460.0,0.00036438,2]
[377321116,1754340662358,-368.06,0.00036438,2]
[377321117,1754340662368,-473.48,0.00036438,2]
[377321118,1754340662378,-460.0,0.00036438,2]
[377321119,1754340662387,-460.0,0.00036438,2]
[377321120,1754340662396,-945.19,0.00036438,2]
[377321121,1754340662406,-460.0,0.00036438,2]
[377321122,1754340662416,-460.0,0.00036438,2]
[377321123,1754340662426,-460.0,0.00036438,2]
[377321124,1754340662436,-460.0,0.00036438,2]
[377321125,1754340662445,-1070.06,0.00036438,2]
[377321126,1754340662455,-817.17,0.00036438,2]
[377321127,1754340662465,-710.67,0.00036438,2]
[377321128,1754340662474,-6244.75,0.00036438,2]
[377321129,1754340662483,-1910.52,0.00036438,2]
[377321130,1754340662493,-1601.57,0.00036438,2]
[377321131,1754340662502,-2947.65,0.00036438,2]
[377321132,1754340662512,-1964.74,0.00036438,2]
[377321133,1754340662521,-460.0,0.00036438,2]
[377321134,1754340662531,-615.23,0.00036438,2]
[377321135,1754340662541,-494.28,0.00036438,2]
[377321136,1754340662555,-300.0,0.00036458,5]
[377321137,1754340662565,-495.9501556,0.0003646,5]
[377321138,1754340662575,-3292.0,0.0003655,3]
[377321139,1754340662585,-195.3,0.00036643,15]
[377321140,1754340662596,-4800.0,0.00036708,5]
[377321141,1754340662606,-4000.0,0.00036708,5]
[377321142,1754340662616,-4000.0,0.00036708,5]
[377321143,1754340662625,-206.0,0.0003671,30]
[377321144,1754340662635,-882.44,0.00036712,2]
[377321145,1754340662645,-1299.76,0.00036712,2]
[377321146,1754340662654,-2365.37,0.00036712,2]
[377321147,1754340662665,-620.86,0.00036712,2]
[377321148,1754340662675,-701.71,0.00036712,2]
[377321149,1754340662684,-483.5,0.00036712,2]
[377321150,1754340662693,-460.0,0.00036712,2]
[377321151,1754340662703,-460.0,0.00036712,2]
[377321152,1754340662712,-460.0,0.00036712,2]
[377321153,1754340662722,-1558.41,0.00036712,2]
[377321154,1754340662731,-460.0,0.00036712,2]
[377321155,1754340662741,-460.0,0.00036712,2]
[377321156,1754340662751,-460.0,0.00036712,2]
[377321157,1754340662761,-460.0,0.00036712,2]
[377321158,1754340662770,-460.84,0.00036712,2]
[377321159,1754340662780,-1259.66,0.00036712,2]
[377321160,1754340662789,-5166.09,0.00036712,2]
[377321161,1754340662800,-460.0,0.00036712,2]
[377321162,1754340662810,-4368.52,0.00036712,2]
[377321163,1754340662819,-2550.51,0.00036712,2]
[377321164,1754340662829,-263.65,0.00036712,2]
[377321165,1754340662838,-1004.67,0.00036712,2]
[377321166,1754340662848,-460.0,0.00036712,2]
[377321167,1754340662858,-460.0,0.00036712,2]
[377321168,1754340662868,-473.48,0.00036712,2]
[377321169,1754340662877,-460.0,0.00036712,2]
[377321170,1754340662887,-460.0,0.00036712,2]
[377321171,1754340662896,-945.19,0.00036712,2]
[377321172,1754340662905,-265.25,0.00036712,2]
[377321173,1754340662915,-460.0,0.00036712,2]
[377321174,1754340662925,-460.0,0.00036712,2]
[377321175,1754340662935,-330.5,0.00036712,2]
[377321176,1754340662944,-1070.06,0.00036712,2]
[377321177,1754340662954,-817.17,0.00036712,2]
[377321178,1754340662965,-710.67,0.00036712,2]
[377321179,1754340662976,-6244.75,0.00036712,2]
[377321180,1754340662986,-1910.52,0.00036712,2]
[377321181,1754340662996,-1601.57,0.00036712,2]
[377321182,1754340663005,-2947.65,0.00036712,2]
[377321183,1754340663015,-1964.74,0.00036712,2]
[377321184,1754340663025,-460.0,0.00036712,2]
[377321185,1754340663035,-615.23,0.00036712,2]
[377321186,1754340663045,-494.28,0.00036712,2]
[377321187,1754340663055,-860.0,0.00036736,2]
[377321188,1754340663064,-200.0,0.00036758,120]
[377321189,1754340663074,-1500.0,0.000369,22]
[377321190,1754340663084,-203.411399,0.000369,2]
[377321191,1754340663094,-151.0,0.00036986,14]
[377321192,1754340663104,-151.0,0.00036986,14]
[377321193,1754340663113,-151.0,0.00036986,14]
[377321194,1754340663122,-151.0,0.00036986,14]
[377321195,1754340663131,-151.0,0.00036986,14]
[377321196,1754340663141,-151.0,0.00036986,14]
[377321197,1754340663150,-882.44,0.00036986,2]
[377321198,1754340663160,-1299.76,0.00036986,2]
[377321199,1754340663170,-2365.37,0.00036986,2]
[377321200,1754340663179,-620.86,0.00036986,2]
[377321201,1754340663189,-701.71,0.00036986,2]
[377321202,1754340663198,-483.5,0.00036986,2]
[377321203,1754340663208,-460.0,0.00036986,2]
[377321204,1754340663218,-460.0,0.00036986,2]
[377321205,1754340663228,-460.0,0.00036986,2]
[377321206,1754340663237,-151.0,0.00036986,14]
[377321207,1754340663246,-1558.41,0.00036986,2]
[377321208,1754340663256,-151.0,0.00036986,14]
[377321209,1754340663265,-460.0,0.00036986,2]
[377321210,1754340663275,-460.0,0.00036986,2]
[377321211,1754340663284,-460.0,0.00036986,2]
[377321212,1754340663293,-460.0,0.00036986,2]
[377321213,1754340663303,-1259.66,0.00036986,2]
[377321214,1754340663313,-5166.09,0.00036986,2]
[377321215,1754340663322,-460.0,0.00036986,2]
[377321216,1754340663332,-4368.52,0.00036986,2]
[377321217,1754340663342,-2550.51,0.00036986,2]
[377321218,1754340663351,-1004.67,0.00036986,2]
[377321219,1754340663360,-460.0,0.00036986,2]
[377321220,1754340663369,-265.51588401,0.00036986,2]
[377321221,1754340663378,-473.48,0.00036986,2]
[377321222,1754340663483,-460.0,0.00036986,2]
[377321223,1754340663493,-460.0,0.00036986,2]
[377321224,1754340663502,-945.19,0.00036986,2]
[377321225,1754340663512,-438.81,0.00036986,2]
[377321226,1754340663522,-460.0,0.00036986,2]
[377321227,1754340663531,-1070.06,0.00036986,2]
[377321228,1754340663542,-817.17,0.00036986,2]
[377321229,1754340663561,-710.67,0.00036986,2]
[377321230,1754340663571,-6244.75,0.00036986,2]
[377321231,1754340663581,-1910.52,0.00036986,2]
[377321232,1754340663591,-1601.57,0.00036986,2]
[377321233,1754340663604,-2947.65,0.00036986,2]
[377321234,1754340663614,-1964.74,0.00036986,2]
[377321235,1754340663624,-460.0,0.00036986,2]
[377321236,1754340663633,-615.23,0.00036986,2]
[377321237,1754340663643,-494.28,0.00036986,2]
[377321238,1754340663653,-160.2486403,0.00036986,30]